bitfinex-derivatives/quotes_ETHF0:USTF0_20250620
["timestamp","ask_amount","ask_price","bid_price","bid_amount"]
[1750401906133,24.94635293,2522.6,2522.5,15.07399525]
[1750401906435,23.918,2522.6,2522.5,15.07399525]
[1750401906636,24.94700046,2522.6,2522.5,15.07399525]
[1750401906830,25.73976046,2522.6,2522.5,15.07399525]
[1750401907032,25.73976046,2522.6,2522.5,11.1401]
[1750401907232,1.82176046,2522.6,2522.5,11.1401]
[1750401907431,31.83376046,2522.6,2522.5,11.1401]
[1750401907634,1.82176046,2522.6,2522.5,11.1401]
[1750401907836,31.83376046,2522.6,2522.5,13.28429]
[1750401908037,1.82176046,2522.6,2522.5,12.4915]
[1750401908335,31.83176046,2522.6,2522.5,12.4915]
[1750401910142,31.83176046,2522.6,2522.5,11.1401]
[1750401910640,31.83176046,2522.6,2522.5,3.2078]
[1750401911548,31.83176046,2522.6,2522.1,0.79289]
[1750401911549,0.79287,2522.3,2522.1,0.79289]
[1750401911738,24.71087,2522.3,2522.2,8.6143]
[1750401913544,0.79292,2522.1,2522.0,1.3655]
[1750401913843,0.79301,2521.8,2521.7,0.79302]
[1750401914047,0.79301,2521.8,2521.7,1.44792]
[1750401914338,24.94824656,2521.8,2521.4,3.93422525]
[1750401914648,1.82328656,2521.7,2521.6,8.5872]
[1750401915041,1.82328656,2521.7,2521.6,0.6549]
[1750401915342,0.79304,2521.7,2521.6,0.6549]
[1750401915542,4.00084,2521.7,2521.6,0.6549]
[1750401917849,3.2078,2521.7,2521.6,9.38027]
[1750401918141,4.00084,2521.7,2521.6,8.5872]
[1750401918549,4.00084,2521.7,2521.6,0.6549]
[1750401918741,0.7931,2521.5,2521.4,0.6502]
[1750401918947,0.6791,2521.6,2521.4,7.9323]
[1750401919152,30.84612,2521.5,2521.3,0.79316]
[1750401919351,30.84612,2521.5,2521.4,7.9323]
[1750401920050,30.84612,2521.5,2521.3,0.79316]
[1750401920051,0.79314,2521.4,2521.3,0.79316]
[1750401920749,0.79314,2521.4,2521.3,8.72546]
[1750401922152,0.79314,2521.4,2521.3,7.9323]
[1750401922550,0.79314,2521.4,2521.3,8.72547]
[1750401922847,0.79314,2521.4,2521.3,7.9323]
[1750401923850,0.79314,2521.4,2521.3,8.72547]
[1750401924249,30.84612,2521.5,2521.4,0.79314]
[1750401929358,30.053,2521.5,2521.4,0.79314]
[1750401929855,30.057,2521.5,2521.4,7.9323]
[1750401930074,30.057,2521.5,2521.4,8.72544]
[1750401931554,30.055,2521.5,2521.4,11.86654525]
[1750401932651,30.8481,2521.5,2521.4,11.86654525]
[1750401933960,30.8481,2521.5,2521.4,8.72544]
[1750401939156,30.8521,2521.5,2521.4,8.72544]
[1750401939455,0.79314,2521.4,2521.3,2.14645]
[1750401939654,30.85213,2521.5,2521.4,8.72544]
[1750401942256,30.85213,2521.5,2521.4,7.9323]
[1750401943266,31.88641856,2521.5,2521.4,7.9323]
[1750401943465,31.88641856,2521.5,2521.4,8.72544]
[1750401944667,31.88641856,2521.5,2521.4,7.9323]
[1750401944868,32.53631856,2521.5,2521.4,7.9323]
[1750401945465,32.53631856,2521.5,2521.2,1.46318]
[1750401945466,0.79317,2521.3,2521.2,1.46318]
[1750401945666,24.73617,2521.3,2521.2,2.80488]
[1750401945967,23.943,2521.3,2521.2,10.73718]
[1750401946369,6.108,2521.4,2521.3,0.79317]
[1750401946669,30.051,2521.4,2521.3,9.39537]
[1750401946968,30.051,2521.4,2521.3,10.73707]
[1750401947269,30.84414,2521.4,2521.3,10.73707]
[1750401948866,31.87875787,2521.4,2521.3,7.9323]
[1750401949966,31.87875787,2521.4,2521.3,8.72547]
[1750401950467,31.87875787,2521.4,2521.3,7.9323]
[1750401951165,1.98294,2521.3,2520.8,0.7933]
[1750401951362,24.97261787,2521.2,2521.0,7.9323]
[1750401951562,6.90123,2521.1,2521.0,7.9323]
[1750401951965,0.79329,2520.9,2520.8,0.6409]
[1750401952265,24.73529,2520.9,2520.8,0.6409]
[1750401952463,24.73529,2520.9,2520.8,8.5732]
[1750401952671,27.1498,2520.9,2520.4,3.14110525]
[1750401952869,0.79342,2520.6,2520.5,0.6409]
[1750401953165,24.73942,2520.6,2520.5,0.6409]
[1750401953370,0.79345,2520.4,2520.3,3.2078]
[1750401953564,24.74145,2520.4,2520.3,3.2078]
[1750401953767,24.74145,2520.4,2520.3,11.1401]
[1750401954467,24.74145,2520.4,2520.3,11.93358]
[1750401954879,23.948,2520.4,2520.3,11.93358]
[1750401955172,24.74145,2520.4,2520.3,11.1401]
[1750401956669,24.74145,2520.4,2520.3,7.9323]
[1750401956869,24.74145,2520.4,2520.3,8.72578]
[1750401957071,24.74145,2520.4,2520.3,7.9323]
[1750401957583,24.5903,2520.4,2520.1,0.79353]
[1750401957769,25.38375,2520.4,2520.3,7.9323]
[1750401958273,0.7935,2520.3,2520.1,0.79353]
[1750401958476,30.064,2520.2,2520.1,0.79352]
[1750401958876,30.85751,2520.2,2520.1,7.9323]
[1750401959471,30.85751,2520.2,2520.1,8.72585]
[1750401959674,30.85751,2520.2,2520.1,7.9323]
[1750401960472,30.064,2520.2,2519.9,4.5082]
[1750401960673,0.79358,2520.0,2519.9,7.9323]
[1750401960870,0.79361,2519.9,2519.8,0.6509]
[1750401961078,6.90261,2519.9,2519.8,0.6509]
[1750401961276,6.90261,2519.9,2519.8,8.5832]
[1750401961478,6.90261,2519.9,2519.8,9.37684]
[1750401961679,0.79356,2520.1,2520.0,0.79356]
[1750401961876,30.87556,2520.1,2520.0,8.72586]
[1750401962177,0.79358,2520.0,2519.9,1.3812]
[1750401962477,0.7936,2520.0,2519.9,0.79361]
[1750401962672,1.44459,2520.0,2519.9,0.79361]
[1750401963372,0.651,2520.0,2519.9,0.79361]
[1750401964288,34.01667525,2520.1,2520.0,0.79358]
[1750401964581,3.8562,2520.3,2520.2,0.79351]
[1750401964773,33.9422,2520.3,2520.2,0.79351]
[1750401965073,3.8562,2520.3,2520.1,0.79353]
[1750401965281,0.79352,2520.2,2520.1,0.79353]
[1750401966383,37.87880525,2520.3,2520.2,0.79351]
[1750401967889,3.8562,2520.3,2520.2,0.79351]
[1750401968088,33.2938,2520.3,2520.2,0.79351]
[1750401968286,34.08728,2520.3,2520.2,0.79351]
[1750401969081,33.2938,2520.3,2520.2,0.79351]
[1750401969781,3.2078,2520.3,2520.2,0.79351]
[1750401969989,33.3018,2520.3,2520.2,1.42471]
[1750401970188,34.09528,2520.3,2520.2,1.42471]
[1750401970383,34.09528,2520.3,2520.2,8.5635]
[1750401970685,34.09528,2520.3,2520.2,9.35701]
[1750401970887,34.09528,2520.3,2520.2,10.63611]
[1750401971078,34.09528,2520.3,2520.2,9.8426]
[1750401971280,34.09528,2520.3,2520.2,10.63611]
[1750401971484,9.3258,2520.3,2520.2,10.63611]
[1750401971685,33.3018,2520.3,2520.2,10.63611]
[1750401971885,34.09528,2520.3,2520.2,9.8426]
[1750401972484,34.09528,2520.3,2520.2,10.63611]
[1750401973288,34.09428,2520.3,2520.2,9.8426]
[1750401974781,0.79358,2520.0,2519.9,0.7936]
[1750401974984,30.88858,2520.0,2519.9,0.7936]
[1750401975189,30.88858,2520.0,2519.9,7.9323]
[1750401975490,34.02968525,2520.0,2519.9,7.9323]
[1750401976580,0.79364,2519.8,2519.7,0.79367]
[1750401976778,24.77464,2519.8,2519.6,4.68328]
[1750401976981,24.77464,2519.8,2519.7,7.9323]
[1750401977383,24.77464,2519.8,2519.6,4.68328]
[1750401977581,24.77464,2519.8,2519.7,7.9323]
[1750401977782,30.89364,2519.8,2519.7,7.9323]
[1750401977983,0.79367,2519.7,2519.6,4.68328]
[1750401978481,0.79367,2519.7,2519.6,12.61558]
[1750401979291,0.79367,2519.7,2519.6,11.8219]
[1750401979591,30.89365,2519.8,2519.6,11.8219]
[1750401979792,30.89365,2519.8,2519.7,7.9323]
[1750401980192,0.79367,2519.7,2519.6,4.68328]
[1750401980694,0.79367,2519.7,2519.6,12.61558]
[1750401982493,30.89366,2519.8,2519.7,0.79367]
[1750401982693,30.89366,2519.8,2519.7,8.72597]
[1750401982994,30.89366,2519.8,2519.7,0.79367]
[1750401983890,0.79367,2519.7,2519.6,4.68328]
[1750401984792,30.89366,2519.8,2519.7,0.79367]
[1750401985098,30.89366,2519.8,2519.7,7.9323]
[1750401985395,0.79367,2519.7,2519.6,4.68328]
[1750401985798,0.79367,2519.7,2519.6,12.61558]
[1750401985997,30.89366,2519.8,2519.7,0.79367]
[1750401986197,30.89366,2519.8,2519.7,8.72597]
[1750401986498,30.89366,2519.8,2519.7,0.79367]
[1750401987697,30.1,2519.8,2519.7,0.79367]
[1750401987889,30.1,2519.8,2519.7,2.07317]
[1750401988097,30.89364,2519.8,2519.7,2.07317]
[1750401988296,31.92742983,2519.8,2519.7,2.07317]
[1750401988896,1.03378983,2519.8,2519.7,10.00547]
[1750401989202,0.79359,2520.0,2519.9,0.79361]
[1750401989391,31.92958602,2520.0,2519.9,0.79361]
[1750401989594,31.13599602,2520.0,2519.9,0.79361]
[1750401989803,31.13599602,2520.0,2519.9,2.07311]
[1750401991401,5.28751,2520.3,2519.9,9.2118]
[1750401991602,5.28751,2520.3,2520.2,7.9323]
[1750401991800,36.43144686,2520.3,2520.2,7.9323]
[1750401992103,36.43144686,2520.3,2520.2,0.6326]
[1750401992997,7.94741686,2520.3,2520.2,0.6326]
[1750401993203,1.82741686,2520.3,2520.2,0.6326]
[1750401993502,31.93641686,2520.3,2520.2,0.6326]
[1750401993703,7.94741686,2520.3,2520.2,0.6326]
[1750401994003,31.93641686,2520.3,2520.2,0.6326]
[1750401995297,31.93641686,2520.3,2520.2,8.5649]
[1750401996805,7.94741686,2520.3,2520.2,8.5649]
[1750401997008,7.15393686,2520.3,2520.2,10.69591]
[1750401997207,31.93141686,2520.3,2520.2,10.69591]
[1750401997399,7.94741686,2520.3,2520.2,10.69591]
[1750401997706,31.93741686,2520.3,2520.2,10.69591]
[1750401999002,46.3447,2520.5,2520.3,0.79347]
[1750401999306,31.14014351,2520.4,2520.3,2.14087]
[1750401999508,6.119,2520.4,2520.3,2.14087]
[1750401999805,30.107,2520.4,2520.3,10.07317]
[1750402000101,31.14003143,2520.4,2520.3,10.07317]
[1750402002106,31.93348143,2520.4,2520.3,10.07317]
[1750402003105,31.14003143,2520.4,2520.3,10.07317]
[1750402004505,31.93348143,2520.4,2520.3,9.2797]
[1750402005009,31.93348143,2520.4,2520.3,7.9323]
[1750402005305,35.07458668,2520.4,2520.3,7.9323]
[1750402005706,35.73338668,2520.4,2520.3,7.9323]
[1750402006903,32.59228143,2520.4,2520.3,7.9323]
[1750402007104,32.59228143,2520.4,2520.3,8.72578]
[1750402007708,7.15203143,2520.4,2520.3,8.72578]
[1750402008014,30.103,2520.4,2520.3,10.09198]
[1750402009908,30.89645,2520.4,2520.3,10.09198]
[1750402010812,30.103,2520.4,2520.3,10.09198]
[1750402011112,30.89645,2520.4,2520.3,10.09198]
[1750402011809,30.103,2520.4,2520.3,10.09198]
[1750402013019,30.89645,2520.4,2520.3,10.09198]
[1750402017418,31.93210572,2520.4,2520.3,10.09198]
[1750402019223,31.93210572,2520.4,2520.3,7.9323]
[1750402019621,32.56040572,2520.4,2520.3,7.9323]
[1750402020418,0.79356,2520.1,2519.7,6.3689959]
[1750402020617,30.88856,2520.1,2520.0,0.79358]
[1750402020819,30.88856,2520.1,2520.0,8.72588]
[1750402021516,31.55816,2520.1,2520.0,8.72588]
[1750402023132,31.55816,2520.1,2520.0,7.9323]
[1750402023337,32.20706,2520.1,2520.0,8.72588]
[1750402024335,31.4135,2520.1,2520.0,8.72588]
[1750402024727,3.2078,2520.2,2520.1,0.79355]
[1750402024923,33.3058,2520.2,2520.1,8.72585]
[1750402025126,33.3058,2520.2,2520.1,9.38275]
[1750402025127,3.2078,2520.2,2520.1,9.38275]
[1750402025327,9.3308,2520.2,2520.1,9.38275]
[1750402025534,9.3308,2520.2,2520.1,10.65945]
[1750402025535,33.3058,2520.2,2520.1,10.65945]
[1750402026332,34.34314245,2520.2,2520.1,10.65945]
[1750402026532,34.34328475,2520.2,2520.1,10.65945]
[1750402027436,10.36828475,2520.2,2520.1,10.65945]
[1750402028444,11.16179475,2520.2,2520.1,9.38275]
[1750402028638,4.24528475,2520.2,2520.1,9.38275]
[1750402031341,3.2078,2520.2,2520.1,9.38275]
[1750402031837,3.2078,2520.2,2520.1,10.71065]
[1750402032835,4.00131,2520.2,2520.1,10.71065]
[1750402033040,5.03899901,2520.2,2520.1,10.71065]
[1750402033541,29.02299901,2520.2,2520.1,9.38275]
[1750402033738,29.02299901,2520.2,2520.1,7.9323]
[1750402033938,29.66459901,2520.2,2520.1,7.9323]
[1750402034739,29.66459901,2520.2,2520.1,8.72584]
[1750402035142,5.03899901,2520.2,2520.1,8.72584]
[1750402035348,35.14099901,2520.2,2520.1,0.79354]
[1750402038850,34.34748901,2520.2,2520.1,0.79354]
[1750402039247,35.14099901,2520.2,2520.1,0.79354]
[1750402040247,0.7936,2520.0,2519.9,0.79359]
[1750402040549,24.7756,2520.0,2519.9,0.79359]
[1750402040740,24.7756,2520.0,2519.9,8.72589]
[1750402041453,23.982,2520.0,2519.9,7.9323]
[1750402042549,0.6782,2520.1,2519.9,7.9323]
[1750402042852,24.6572,2520.1,2520.0,7.9323]
[1750402046760,30.095,2520.2,2520.0,14.28120525]
[1750402047052,30.095,2520.2,2520.1,7.9323]
[1750402047253,31.13274691,2520.2,2520.1,9.9522]
[1750402048254,31.13274691,2520.2,2520.1,0.661]
[1750402049555,31.13281852,2520.2,2520.1,0.661]
[1750402049749,1.03781852,2520.2,2520.1,8.5933]
[1750402049953,31.12681852,2520.2,2520.1,8.5933]
[1750402051753,31.12681852,2520.2,2520.1,7.9323]
[1750402053651,31.12881852,2520.2,2520.1,9.2824]
[1750402055262,45.707,2520.5,2520.1,12.42350525]
[1750402055463,45.707,2520.5,2520.0,4.54]
[1750402055464,51.828,2520.5,2520.4,11.86684525]
[1750402055655,75.795,2520.5,2520.4,11.86684525]
[1750402055855,75.795,2520.5,2520.4,13.87784525]
[1750402056068,6.121,2520.7,2520.6,0.79335]
[1750402056363,30.092,2520.7,2520.6,8.72565]
[1750402056963,30.88535,2520.7,2520.6,8.72565]
[1750402057357,30.096,2520.7,2520.6,8.72565]
[1750402057568,30.88935,2520.7,2520.6,8.72565]
[1750402058259,30.096,2520.7,2520.6,8.72565]
[1750402060366,30.88935,2520.7,2520.6,8.72565]
[1750402060761,30.096,2520.7,2520.6,8.72565]
[1750402061161,30.88935,2520.7,2520.6,8.72565]
[1750402061667,30.088,2520.7,2520.6,7.9323]
[1750402062770,30.88135,2520.7,2520.6,8.72566]
[1750402063768,3.2078,2520.8,2520.6,8.72566]
[1750402063965,9.3198,2520.8,2520.7,10.61095]
[1750402064471,10.11312,2520.8,2520.7,10.61095]
[1750402064965,9.3198,2520.8,2520.7,10.61095]
[1750402065160,3.2078,2520.8,2520.7,10.61095]
[1750402066564,4.00112,2520.8,2520.7,10.61095]
[1750402068274,3.2078,2520.8,2520.7,10.61095]
[1750402069773,25.4285,2520.9,2520.8,0.79332]
[1750402069978,25.4285,2520.9,2520.8,8.72562]
[1750402070165,25.4285,2520.9,2520.8,0.79332]
[1750402071574,23.996,2520.9,2520.8,8.72562]
[1750402071773,23.996,2520.9,2520.8,10.10462]
[1750402071988,4.00105,2521.1,2521.0,0.79326]
[1750402072287,34.10805,2521.1,2521.0,0.79326]
[1750402072482,0.79328,2521.0,2520.9,0.79327]
[1750402072882,0.79328,2521.0,2520.9,8.72557]
[1750402073782,30.90128,2521.0,2520.9,8.72557]
[1750402075695,10.11204,2521.1,2521.0,0.79326]
[1750402075993,34.10304,2521.1,2521.0,7.9323]
[1750402076194,0.79326,2521.0,2520.9,0.79327]
[1750402076584,0.79326,2521.0,2520.9,8.72557]
[1750402084791,30.89524,2521.1,2521.0,0.79326]
[1750402084992,31.9068078,2521.1,2521.0,8.72556]
[1750402085191,31.9068078,2521.1,2521.0,0.79326]
[1750402086098,31.1105678,2521.1,2521.0,0.79326]
[1750402086793,31.9037978,2521.1,2521.0,0.79326]
[1750402087092,0.79329,2521.0,2520.9,0.79327]
[1750402087490,0.79329,2521.0,2520.9,8.72557]
[1750402087690,0.79329,2521.0,2520.9,10.10387]
[1750402089404,1.81648649,2521.0,2520.9,10.10387]
[1750402091901,1.81648649,2521.0,2520.9,8.72557]
[1750402093806,1.81648649,2521.0,2520.9,7.9323]
[1750402094307,1.81648649,2521.0,2520.8,0.79329]
[1750402094308,0.7933,2520.9,2520.8,0.79329]
[1750402094606,1.81649649,2520.9,2520.8,0.79329]
[1750402094801,1.81649649,2520.9,2520.8,8.72559]
[1750402096004,1.81649649,2520.9,2520.8,7.9323]
[1750402096205,2.45549649,2520.9,2520.8,7.9323]
[1750402096500,2.45549649,2520.9,2520.8,8.72562]
[1750402098408,2.45549649,2520.9,2520.8,7.9323]
[1750402098608,0.79338,2520.7,2520.5,0.7934]
[1750402098907,34.00448525,2520.7,2520.5,0.7934]
[1750402099109,34.00448525,2520.7,2520.6,7.9323]
[1750402099302,35.02636027,2520.7,2520.6,7.9323]
[1750402099503,34.00448525,2520.7,2520.6,7.9323]
[1750402100810,30.86338,2520.7,2520.6,8.72569]
[1750402102114,0.79338,2520.7,2520.6,8.72569]
[1750402102313,30.088,2520.7,2520.6,8.72569]
[1750402104416,0.639,2520.9,2520.6,7.9323]
[1750402104622,23.973,2520.8,2520.7,0.79335]
[1750402104810,23.973,2520.8,2520.7,2.78985]
[1750402105117,23.973,2520.8,2520.7,10.72215]
[1750402108415,1.4323,2520.9,2520.8,0.79332]
[1750402108605,1.4323,2520.9,2520.8,8.72562]
[1750402108606,32.53864511,2520.9,2520.8,8.72562]
[1750402109415,0.79338,2520.7,2520.5,0.79342]
[1750402109617,0.79338,2520.7,2520.6,0.79339]
[1750402109808,0.79338,2520.7,2520.6,8.72569]
[1750402110112,0.79334,2520.8,2520.6,8.72569]
[1750402110314,0.79334,2520.8,2520.7,8.72565]
[1750402112817,30.72,2520.9,2520.8,0.79332]
[1750402113018,31.74134286,2520.9,2520.8,0.79332]
[1750402114319,32.53465286,2520.9,2520.8,0.79332]
[1750402116720,0.79335,2520.8,2520.7,0.79333]
[1750402116915,0.79335,2520.8,2520.7,8.72563]
[1750402118620,7.54431,2520.9,2520.8,0.79332]
[1750402118818,32.52385861,2520.9,2520.8,0.79332]
[1750402120315,0.79335,2520.8,2520.7,0.79333]
[1750402120519,0.79335,2520.8,2520.7,8.72563]
[1750402121222,0.79335,2520.8,2520.7,7.9323]
[1750402121223,1.814793,2520.8,2520.7,7.9323]
[1750402121422,0.79335,2520.8,2520.7,8.72565]
[1750402121624,1.81481385,2520.8,2520.7,8.72565]
[1750402121922,0.79335,2520.8,2520.7,7.9323]
[1750402122320,1.8148249,2520.8,2520.7,8.72565]
[1750402123125,1.8148249,2520.8,2520.7,7.9323]
[1750402123623,1.8148249,2520.8,2520.7,8.72565]
[1750402124713,1.8148249,2520.8,2520.3,8.33259525]
[1750402124714,1.98339,2520.7,2520.3,3.16509054]
[1750402124917,0.79351,2520.2,2520.0,5.13809054]
[1750402125123,6.9005,2520.3,2520.2,7.9323]
[1750402125318,0.79351,2520.2,2520.1,8.72582]
[1750402125817,34.64170525,2520.3,2520.2,0.79351]
[1750402126016,31.5006,2520.3,2520.2,0.79351]
[1750402127225,30.8665,2520.3,2520.2,0.79351]
[1750402127425,30.073,2520.3,2520.2,8.72581]
[1750402127725,30.86648,2520.3,2520.2,8.72581]
[1750402128617,30.88248,2520.3,2520.2,8.72581]
[1750402130723,3.2078,2520.5,2520.4,0.79345]
[1750402131030,6.107,2520.6,2520.5,0.79342]
[1750402131216,6.107,2520.6,2520.5,10.08562]
[1750402131414,6.107,2520.6,2520.5,10.74992]
[1750402132227,6.90039,2520.6,2520.5,10.74992]
[1750402134029,6.90039,2520.6,2520.5,9.9565]
[1750402135227,6.90039,2520.6,2520.5,9.2922]
[1750402136030,6.90039,2520.6,2520.5,8.72572]
[1750402136332,6.90039,2520.6,2520.5,7.9323]
[1750402136525,6.90039,2520.6,2520.5,8.72572]
[1750402136725,6.90039,2520.6,2520.5,7.9323]
[1750402137130,0.79339,2520.6,2520.5,7.9323]
[1750402137327,24.78139,2520.6,2520.5,7.9323]
[1750402137525,24.78139,2520.6,2520.5,8.72572]
[1750402139130,24.78139,2520.6,2520.5,7.9323]
[1750402139329,24.78139,2520.6,2520.5,8.72572]
[1750402140531,0.79339,2520.6,2520.5,8.72572]
[1750402140730,24.77739,2520.6,2520.5,8.72572]
[1750402140929,0.79339,2520.6,2520.5,8.72572]
[1750402141230,24.77539,2520.6,2520.5,7.9323]
[1750402142730,24.77539,2520.6,2520.5,8.72572]
[1750402143134,24.77539,2520.6,2520.5,7.9323]
[1750402143431,24.77539,2520.6,2520.5,8.72572]
[1750402143826,24.77539,2520.6,2520.5,7.9323]
[1750402144632,24.77539,2520.6,2520.5,8.72572]
[1750402145437,24.77539,2520.6,2520.5,7.9323]
[1750402145735,0.79339,2520.6,2520.5,8.72572]
[1750402145934,24.76839,2520.6,2520.5,8.72572]
[1750402146632,23.975,2520.6,2520.5,8.72572]
[1750402147335,24.76839,2520.6,2520.5,8.72572]
[1750402150238,24.76839,2520.6,2520.5,7.9323]
[1750402150737,24.76839,2520.6,2520.5,8.72572]
[1750402153441,24.76839,2520.6,2520.5,7.9323]
[1750402154138,24.76839,2520.6,2520.5,8.72572]
[1750402154540,24.76839,2520.6,2520.5,7.9323]
[1750402155037,25.80548977,2520.6,2520.5,7.9323]
[1750402155742,26.43348977,2520.6,2520.5,7.9323]
[1750402155943,26.43348977,2520.6,2520.5,8.72572]
[1750402156340,26.43348977,2520.6,2520.5,7.9323]
[1750402157041,29.64128977,2520.6,2520.5,7.9323]
[1750402157336,0.79345,2520.4,2520.3,0.6257]
[1750402157638,27.89555525,2520.4,2520.3,7.9323]
[1750402157941,34.00655525,2520.4,2520.3,7.9323]
[1750402158146,0.79351,2520.2,2520.1,1.45963]
[1750402158443,0.79354,2520.1,2519.8,5.10529054]
[1750402158639,1.41684,2520.1,2520.0,0.79357]
[1750402158838,1.41684,2520.1,2520.0,8.72587]
[1750402159542,0.6233,2520.1,2520.0,8.72587]
[1750402159742,24.76651,2520.2,2520.1,0.79354]
[1750402159943,24.76651,2520.2,2520.1,8.72584]
[1750402160142,24.76651,2520.2,2520.1,0.79354]
[1750402161348,24.76651,2520.2,2520.1,8.72584]
[1750402165653,24.76651,2520.2,2520.1,7.9323]
[1750402165845,24.76651,2520.2,2520.1,8.72584]
[1750402166247,24.76651,2520.2,2520.1,7.9323]
[1750402166653,24.76651,2520.2,2520.1,8.72584]
[1750402167549,27.90761525,2520.2,2520.1,0.79354]
[1750402168249,24.76651,2520.2,2520.1,0.79354]
[1750402168446,23.973,2520.2,2520.1,0.79354]
[1750402169150,5.25321,2520.3,2520.2,0.79351]
[1750402169350,29.22421,2520.3,2520.2,0.79351]
[1750402170354,27.8054,2520.3,2520.2,0.79351]
[1750402171552,27.97028,2520.3,2520.2,0.79351]
[1750402172453,33.2868,2520.3,2520.2,0.79351]
[1750402174053,30.079,2520.3,2520.2,1.47801]
[1750402174255,34.08028,2520.3,2520.2,0.6845]
[1750402174556,34.08028,2520.3,2520.2,1.47801]
[1750402175651,0.79356,2520.1,2519.8,3.81799054]
[1750402175850,24.75956,2520.1,2519.9,0.6845]
[1750402176056,24.75956,2520.1,2520.0,7.9323]
[1750402176951,23.966,2520.1,2520.0,8.72584]
[1750402178356,23.966,2520.1,2520.0,10.01474]
[1750402179355,24.75954,2520.1,2520.0,10.01474]
[1750402181163,23.966,2520.1,2520.0,10.01474]
[1750402182163,0.7935,2520.3,2520.2,0.79351]
[1750402182364,30.8655,2520.3,2520.2,0.79351]
[1750402183667,30.072,2520.3,2520.2,0.79351]
[1750402183962,30.86548,2520.3,2520.2,0.79351]
[1750402184967,30.072,2520.3,2520.2,0.79351]
[1750402185262,30.86548,2520.3,2520.2,0.79351]
[1750402186461,31.9106071,2520.3,2520.2,0.79351]
[1750402186859,31.1171271,2520.3,2520.2,0.79351]
[1750402187764,31.9106071,2520.3,2520.2,0.79351]
[1750402189968,0.79353,2520.2,2520.1,0.79352]
[1750402190359,0.79353,2520.2,2520.1,8.72582]
[1750402191369,30.8655,2520.3,2520.2,0.79351]
[1750402191668,31.91097861,2520.3,2520.2,8.72581]
[1750402191868,31.91097861,2520.3,2520.2,0.79351]
[1750402194066,1.83897861,2520.3,2520.2,8.72581]
[1750402194262,31.90797861,2520.3,2520.2,8.72581]
[1750402195769,31.11447861,2520.3,2520.2,8.72581]
[1750402196475,25.00547861,2520.3,2520.2,8.72581]
[1750402198166,25.00547861,2520.3,2520.2,9.37581]
[1750402199362,1.04547861,2520.3,2520.2,9.37581]
[1750402200369,23.96,2520.4,2520.3,0.79348]
[1750402200573,25.79892493,2520.4,2520.3,10.04628]
[1750402201966,25.79892493,2520.4,2520.3,8.72578]
[1750402202366,25.79892493,2520.4,2520.3,7.9323]
[1750402202673,0.79348,2520.3,2520.2,1.44351]
[1750402202873,5.03033198,2520.3,2520.2,1.44351]
[1750402203178,5.03033198,2520.3,2520.2,8.5823]
[1750402204170,5.03033198,2520.3,2520.2,9.37581]
[1750402204874,2.51105493,2520.3,2520.2,9.37581]
[1750402205175,2.51105493,2520.3,2520.2,8.5823]
[1750402206071,2.51105493,2520.3,2520.2,7.9323]
[1750402206371,4.92537493,2520.3,2519.9,3.16509054]
[1750402206563,0.79356,2520.1,2520.0,0.79355]
[1750402206968,0.79356,2520.1,2520.0,8.72585]
[1750402207273,0.79361,2519.9,2519.8,3.81679054]
[1750402207467,0.79361,2519.9,2519.8,0.6517]
[1750402207672,0.79361,2519.9,2519.8,7.9323]
[1750402208377,0.79361,2519.9,2519.8,8.72594]
[1750402210374,28.53092286,2520.0,2519.9,0.79361]
[1750402210578,25.38139,2520.0,2519.9,0.79361]
[1750402210779,25.38138,2520.0,2519.9,0.79361]
[1750402211277,23.96,2520.0,2519.9,8.72591]
[1750402213279,24.75358,2520.0,2519.9,8.72591]
[1750402213879,23.96,2520.0,2519.9,8.72591]
[1750402215780,0.6743,2520.2,2520.1,0.79354]
[1750402216089,4.00129,2520.3,2520.2,0.79351]
[1750402216277,35.1166415,2520.3,2520.2,8.72581]
[1750402217184,5.0456415,2520.3,2520.2,8.72581]
[1750402217390,35.1156415,2520.3,2520.2,8.72581]
[1750402217570,35.1156315,2520.3,2520.2,8.72581]
[1750402217775,4.2521515,2520.3,2520.2,8.72581]
[1750402217982,34.3221515,2520.3,2520.2,8.72581]
[1750402219480,35.1156315,2520.3,2520.2,7.9323]
[1750402219692,35.1156315,2520.3,2520.2,8.72581]
[1750402219991,35.1156315,2520.3,2520.2,7.9323]
[1750402221784,0.79361,2520.0,2519.9,0.79359]
[1750402221989,0.79361,2520.0,2519.9,8.72589]
[1750402223589,24.75361,2520.0,2519.9,8.72589]
[1750402223791,23.96,2520.0,2519.9,8.72589]
[1750402223994,23.96,2520.0,2519.9,10.07959]
[1750402228292,24.75358,2520.0,2519.9,7.9323]
[1750402229094,24.75358,2520.0,2519.9,8.72591]
[1750402231098,24.75358,2520.0,2519.9,7.9323]
[1750402231296,24.75358,2520.0,2519.9,8.72591]
[1750402233394,27.1678,2520.0,2519.6,3.95878054]
[1750402233598,0.7937,2519.6,2519.5,0.6288]
[1750402233790,24.7537,2519.6,2519.5,8.5611]
[1750402234303,24.7537,2519.6,2519.5,9.35481]
[1750402234901,23.96,2519.6,2519.5,1.42251]
[1750402235499,23.96,2519.6,2519.5,9.35481]
[1750402238706,24.7537,2519.6,2519.5,9.35481]
[1750402240001,25.4076,2519.6,2519.5,7.9323]
[1750402240203,0.79373,2519.5,2519.4,0.79374]
[1750402240703,0.79373,2519.5,2519.4,8.72604]
[1750402240903,0.79373,2519.5,2519.4,0.79374]
[1750402241697,12.46633286,2519.7,2519.6,0.7937]
[1750402241698,3.2078,2519.7,2519.6,0.7937]